Cogmind - Beta 14 @@@ ROGUE MODE // 2024.10.14 @ 13:09:32 Player: THN-L0C Result: Destroyed by H-55 Commando with Gauss Rifle Performance ------------- Evolutions (0) 0 Regions Visited (3) 600 Robots Destroyed (42) 210 Value Destroyed (909) 909 Prototype IDs (12) 240 Alien Tech Used (0) 0 Bonus (26) 26 TOTAL SCORE: 1985 Bonus ------- Follower Combat Kills 151 Friendly Fire -125 Cogmind --------- Core Integrity 0/250 Matter 273/300 Energy 100/100 System Corruption 0% Temperature Cool (50) Movement Treading (340) Ox2 Location -8/Recycling Parts ------- > --- POWER (1) -------- (None) > --- PROPULSION (2) --- Light Treads Spiked Treads > --- UTILITY (2) ------ Huge Storage Unit Makeshift Light Armor Plating > --- WEAPON (2) ------- Barrage Gun Battle Cannon > --- INVENTORY (25) --- Subdweller Power Source Subdweller Power Source Subdweller Monowheel Subdweller Monowheel Cooling System Large Storage Unit High-capacity Matter Pod (200) Improved Terrain Scanner Scrap Shield Field Recycling Unit (0) Cobbler Unit V3-11A's Pendant Subdweller Beam Cannon Barrage Gun Barrage Gun Battle Cannon Improved Grenade Launcher Dirty Datajack (20) Datajack Multitool Flamer Makeshift Hammer Makeshift Spear Peak State ------------ > --- POWER ------------ Ion Engine > --- PROPULSION ------- Light Treads Light Treads Light Treads Light Treads > --- UTILITY ---------- Huge Storage Unit Seismic Detector Tower Shield > --- WEAPON ----------- Barrage Gun Barrage Gun > --- INVENTORY -------- Light Ion Engine Subdweller Power Source Subdweller Power Source Light Treads Subdweller Monowheel Cooling System Large Storage Unit High-capacity Matter Pod Improved Terrain Scanner Scrap Shield Subdweller Beam Cannon Assault Rifle Battle Cannon Battle Cannon Mining Laser Multitool Makeshift Hammer [Rating: 36] Favorites ----------- Power Makeshift Power Source Engine Makeshift Power Source Propulsion Light Treads Treads Light Treads Utility Huge Storage Unit Device V3-11A's Pendant Storage Huge Storage Unit Protection Tower Shield Weapon Barrage Gun Energy Gun Small Laser Energy Cannon Subdweller Beam Cannon Ballistic Gun Barrage Gun Ballistic Cannon Battle Cannon Launcher Grenade Launcher Special Weapon Mining Laser Impact Weapon Makeshift Hammer Piercing Weapon Makeshift Spear Build | -11 -10 -10 -8 ------- Run | Yrd Mat Sub Rec Slots Evolved . | . . . . Power . | . . . . Propulsion . | . . . . Utility . | . . . . Weapon . | . . . . Parts Attached 81 | 7 14 55 5 Power 6 | 1 2 3 . Engine 6 | 1 2 3 . Core . | . . . . Reactor . | . . . . Propulsion 13 | 2 2 8 1 Treads 13 | 2 2 8 1 Leg . | . . . . Wheel . | . . . . Hover . | . . . . Flight . | . . . . Utility 22 | 2 2 15 3 Device 14 | 1 1 11 1 Storage 4 | 1 1 2 . Processor . | . . . . Hackware . | . . . . Protection 4 | . . 2 2 Artifact . | . . . . Weapon 40 | 2 8 29 1 Energy Gun 1 | 1 . . . Energy Cannon 2 | . . 2 . Ballistic Gun 20 | 1 5 13 1 Ballistic Cannon 4 | . . 4 . Launcher 2 | . 2 . . Special Weapon 4 | . 1 3 . Impact Weapon 6 | . . 6 . Slashing Weapon . | . . . . Piercing Weapon 1 | . . 1 . Special Melee Weapon . | . . . . Unidentified Prototypes 1 | . . 1 . Parts Lost 10 | . 2 7 1 Power 3 | . 1 1 1 Propulsion 2 | . . 2 . Utility 2 | . . 2 . Weapon 3 | . 1 2 . Highest Loss Streak 2 | . 2 1 1 To Critical Strikes . | . . . . Average Slot Usage (%) 95 | . 99 95 99 Engine 13 | . 13 13 13 Treads 26 | . 28 26 28 Device 13 | . 14 13 10 Storage 13 | . 14 13 14 Ballistic Gun 13 | . 23 13 . Ballistic Cannon 5 | . . 4 14 Special Weapon 1 | . . 1 . Impact Weapon 6 | . . 6 13 Peak Build Rating 36 | 7 8 36 23 Average Rating 20 | 6 7 21 22 On Entrance 9 | . 7 8 22 Naked Turns . | . . . . Heaviest Build 130 | 11 31 130 94 Greatest Support 80 | 40 40 80 40 Greatest Overweight (x) 4 | 1 . 4 2 Average Overweight (x) 1 | . . 1 2 Largest Inventory Capacity 25 | 8 15 25 25 Average Capacity 23 | 7 14 24 25 Most Carried 25 | 3 15 25 25 Average Carried 22 | 1 8 22 24 Final Capacity 25 | 8 15 25 25 Final Carried 25 | 3 15 25 25 Class Distribution -------------------- 95% | Mutant 4% | Derelict-Mutant Dominant Class ---------------- Mutant | -10/Materials Mutant | -10/Subcaves Derelict-Mutant | -8/Recycling Resources | -11 -10 -10 -8 ----------- Run | Yrd Mat Sub Rec Matter Collected 3242 | 347 357 2484 54 Remotely . | . . . . Salvage Created 1384 | 233 486 621 44 Parts 97 | 19 31 45 2 Haulers Intercepted 2 | . 2 . . Recyclers Shooed . | . . . . Parts Field Recycled . | . . . . Retrieved Matter . | . . . . Parts Self-Destructed 14 | . . 14 . Prevented . | . . . . Kills | -11 -10 -10 -8 ------- Run | Yrd Mat Sub Rec Combat Hostiles Destroyed 24 | . 12 11 1 Guns 17 | . 6 11 . Cannons 1 | . . . 1 AOE 6 | . 6 . . Classes Destroyed 13 | 3 5 4 1 Worker 4 | 2 2 . . Builder 2 | . 2 . . Tunneler 6 | 6 . . . Hauler 2 | . 2 . . Recycler 2 | 1 1 . . Watcher 2 | . 2 . . Swarmer 6 | . 6 . . Grunt 6 | . 6 . . Sentry 1 | . . 1 . Programmer 1 | . . . 1 Artisan 3 | . . 3 . Cobbler 1 | . . 1 . Subdweller 10 | . . 10 . Best Kill Streak 6 | 3 6 1 1 Combat Bots Only 4 | . 4 1 1 Max Kills in Single Turn 3 | 1 3 1 1 Gunslinging . | . . . . Exploded 2 | . 2 . . Melee . | . . . . Uniques/NPCs Destroyed . | . . . . Combat | -11 -10 -10 -8 -------- Run | Yrd Mat Sub Rec Hostile Shots Fired 144 | . 58 71 15 Missed 31 | . 13 14 4 Damage Taken 2168 | . 556 1449 163 Core 258 | . 105 134 19 Absorbed by Shields . | . . . . Core Remaining (%) 100 | 100 . . . Volleys Fired 338 | 30 45 259 4 Largest 2 | 2 2 2 2 Hottest 100 | 60 100 100 67 Shots Fired 440 | 59 65 308 8 Gun 214 | 59 49 102 4 Cannon 191 | . . 187 4 Launcher 15 | . 15 . . Special 20 | . 1 19 . Kinetic 370 | 30 48 284 8 Thermal 55 | 29 2 24 . Explosive 15 | . 15 . . Electromagnetic . | . . . . Robot Hit Streak 22 | 6 9 22 1 Robot Miss Streak 5 | 5 4 4 2 Penetration Max . | . . . . Secondary Targets . | . . . . Shots Hit Robots 154 | 36 32 83 3 Core Hits 73 | 14 30 28 1 Critical Kills 1 | 1 . . . Critical Parts Destroyed 1 | . . 1 . Critical Strikes 2 | 1 . 1 . Destroy 2 | 1 . 1 . Melee Attacks 539 | . . 539 . Impact 465 | . . 465 . Slashing . | . . . . Piercing 74 | . . 74 . Sneak Attacks 3 | . . 3 . Combat Hostiles . | . . . . Follow-up Attacks . | . . . . Damage Inflicted 2940 | 353 1136 1359 92 Guns 1867 | 352 357 1135 23 Cannons 94 | . . 25 69 Explosions 755 | . 755 . . Melee 199 | . . 199 . Ramming 25 | 1 24 . . Kinetic 1779 | 170 357 1160 92 Thermal 182 | 182 . . . Explosive 755 | . 755 . . Electromagnetic . | . . . . Impact 199 | . . 199 . Slashing . | . . . . Piercing . | . . . . Highest Corruption . | . . . . Average Corruption . | . . . . Corruption Purged . | . . . . Corruption Blocked . | . . . . Overload Shots . | . . . . Overflow Damage 52 | . 12 40 . Projectiles . | . . . . Explosions 12 | . 12 . . Melee 40 | . . 40 . Knockbacks 1 | . . 1 . Impact 1 | . . 1 . Kinetic . | . . . . Secondary . | . . . . Self-Inflicted Damage 56 | . 56 . . Shots 2 | . 2 . . Rammed 2 | 1 1 . . Targets Rammed 3 | 1 2 . . Kicked . | . . . . Crushed 1 | . 1 . . Highest Temperature 82 | 80 30 40 82 Average Temperature 25 | 26 15 18 39 Received Heat Transfer 285 | . 177 81 27 Siege Activations . | . . . . Robots Corrupted 1 | . . 1 . Combat Hostiles . | . . . . Parts Fried . | . . . . Impact Corruptions 2 | . . 2 . Robots Melted . | . . . . Combat Hostiles . | . . . . Parts Melted . | . . . . Heat Transferred 400 | 400 . . . Parts Sabotaged . | . . . . Parts Stolen . | . . . . Parts Stripped . | . . . . Power Chain Reactions . | . . . . Alert | -11 -10 -10 -8 ------- Run | Yrd Mat Sub Rec Peak Influence 316 | 45 316 . 166 Initial 145 | . 29 . 145 Average 85 | 21 109 . 72 Maximum Alert Level 1 | . 1 . . Low Security (%) 88 | 100 77 . 100 Level 1 11 | . 22 . . Level 2 . | . . . . Level 3 . | . . . . Level 4 . | . . . . Level 5 . | . . . . High Security . | . . . . Max Security . | . . . . Squads Dispatched 1 | . 1 . . Investigation . | . . . . Extermination . | . . . . Reinforcement 1 | . 1 . . Assault . | . . . . Garrison . | . . . . Intercept . | . . . . Searches Triggered . | . . . . Construction Impeded . | . . . . Haulers Reinforced . | . . . . Active Scanning Responses . | . . . . Cargo Convoy Interrupts . | . . . . Stealth | -11 -10 -10 -8 --------- Run | Yrd Mat Sub Rec Distress Signals 1 | . 1 . . Communications Jammed . | . . . . Distress Signals . | . . . . Times Spotted 47 | . 20 24 3 Peak Tracking Total 4 | . 4 4 2 Tactical Retreats 8 | . 1 7 . Traps | -11 -10 -10 -8 ------- Run | Yrd Mat Sub Rec Traps Triggered 4 | . 1 3 . Indirectly . | . . . . Trap Hack Attempts . | . . . . Triggered . | . . . . Disarmed . | . . . . Reprogrammed . | . . . . Reused 1 | . . 1 . Traps Extracted . | . . . . Installed 1 | . . 1 . Triggered . | . . . . Most Traps Carried 1 | . . 1 . Machines | -11 -10 -10 -8 ---------- Run | Yrd Mat Sub Rec Machines Disabled 6 | . 1 5 . Max in Single Turn 1 | . 1 1 . Machines Repaired . | . . . . Machines Dismantled . | . . . . Machines Sabotaged . | . . . . Overloaded Fab Kills . | . . . . Hacking | -11 -10 -10 -8 --------- Run | Yrd Mat Sub Rec Machines Accessed 7 | . 5 2 . Terminals 5 | . 5 . . Fabricators . | . . . . Repair Stations . | . . . . Recycling Units . | . . . . Scanalyzers . | . . . . Garrison Access . | . . . . Total Hacks 24 | . 20 4 . Successful 16 | . 12 4 . Failed 8 | . 8 . . Catastrophic . | . . . . Database Lockouts . | . . . . Manual 16 | . 16 . . Terminals 20 | . 20 . . Fabricators . | . . . . Repair Stations . | . . . . Recycling Units . | . . . . Scanalyzers . | . . . . Garrison Access . | . . . . Terminal Hacks 7 | . 3 4 . Record 3 | . . 3 . Terminal Index 1 | . 1 . . Hauler Manifests 1 | . 1 . . Zone Layout 1 | . 1 . . Derelict Proto ID Bank 1 | . . 1 . Fabricator Hacks . | . . . . Repair Station Hacks . | . . . . Recycling Unit Hacks . | . . . . Scanalyzer . | . . . . Garrison Access Hacks . | . . . . Unauthorized Hacks 9 | . 9 . . Terminals 9 | . 9 . . Botnet 3 | . 3 . . Operators 1 | . 1 . . Skim 5 | . 5 . . Fabricators . | . . . . Repair Stations . | . . . . Recycling Units . | . . . . Scanalyzers . | . . . . Garrison Access . | . . . . Data Cores Recovered . | . . . . Used . | . . . . Hacking Detections 3 | . 3 . . Full Trace Events . | . . . . Feedback Events . | . . . . Feedback Blocked . | . . . . Robot Schematics Acquired . | . . . . Robots Built . | . . . . Authchips . | . . . . Time . | . . . . Total Robot Build Rating . | . . . . Part Schematics Acquired . | . . . . Parts Built . | . . . . Authchips . | . . . . Time . | . . . . Total Part Build Rating . | . . . . Parts Repaired . | . . . . Time . | . . . . Parts Recycled . | . . . . Recycled Matter . | . . . . Retrieved Matter . | . . . . Retrieved Components . | . . . . Parts Scanalyzed . | . . . . Part Schematics Acquired . | . . . . Parts Damaged . | . . . . Bothacking | -11 -10 -10 -8 ------------ Run | Yrd Mat Sub Rec Used RIF Installer . | . . . . Robots Hacked . | . . . . Non-combat . | . . . . Combat . | . . . . Robot Hacks Applied . | . . . . Relay Couplers Released . | . . . . Fabnet Peak Effective % . | . . . . Robots Rewired . | . . . . Allies Hacked . | . . . . Hacks Repelled . | . . . . Allies | -11 -10 -10 -8 -------- Run | Yrd Mat Sub Rec Total Allies 10 | . . 10 . Largest Group 3 | . . 3 1 Highest-Rated Group 57 | . . 57 19 Highest-Rated Ally 19 | . . 19 19 Total Orders . | . . . . Ally Attacks 43 | . . 35 8 Total Damage 903 | . . 733 170 Kills 10 | . . 8 2 Allies Corrupted 1 | . . . 1 Allies Melted . | . . . . Intel | -11 -10 -10 -8 ------- Run | Yrd Mat Sub Rec Robot Analysis Total . | . . . . Derelict Logs Recovered 2 | . . 2 . Drone Launches . | . . . . Drone Recoveries . | . . . . Exploration | -11 -10 -10 -8 ------------- Run | Yrd Mat Sub Rec Turns Passed 23639 | 249 1195 21287 908 Spaces Moved 6389 | 99 585 5559 146 Core 8 | 8 . . . Treads 6381 | 91 585 5559 146 Legs . | . . . . Wheels . | . . . . Hover . | . . . . Flight . | . . . . Fastest Speed 50 | 50 160 160 340 Average Speed 281 | 153 160 295 340 Slowest Speed 480 | 160 160 480 340 Overloaded Moves . | . . . . Propulsion Burnouts . | . . . . Robots Hopped . | . . . . Cave-ins Triggered . | . . . . Exploration Rate (%) 49 | 6 80 89 22 Regions Visited 3 Branch Regions 2 Pre-discovered Areas 3 | . 1 2 . Known Exits Taken 1 | . 1 . . Unknown Exits Taken 2 | 1 . 1 . Scrap Searched 13 | . . 13 . Spaces Dug 343 | . 13 330 . Terrain Destroyed 485 | . 88 397 . Melee 292 | . . 292 . Projectile 106 | . 1 105 . AOE 87 | . 87 . . Terrain Rammed . | . . . . Walls Destroyed . | . . . . Machines Disabled . | . . . . Actions | -11 -10 -10 -8 --------- Run | Yrd Mat Sub Rec Total 10998 | 139 773 9536 550 Wait 3560 | . 116 3056 388 Move 6386 | 98 584 5558 146 Hop . | . . . . Pick Up 66 | 3 9 51 3 Fast Attach 11 | 7 1 3 . Attach 11 | . 1 10 . Detach . | . . . . Swap 59 | . 12 42 5 Drop 24 | . 3 17 4 Fire 338 | 30 45 259 4 Melee 539 | . . 539 . Ram . | . . . . Kick . | . . . . Crush 3 | 1 2 . . Escape Stasis . | . . . . Rewire . | . . . . Trap 1 | . . 1 . Miscellaneous . | . . . . Route ------- -11/Scrapyard -10/Materials (discovered 4 exits: [*Mat x2] / [*Min] / *Sub) -10/Subcaves (discovered 3 exits: [*Mat x2] / [*Rec]) -8/Recycling History --------- Turn | Location | Event 14 | -11/Scrapyard | Discovered new exit (range 15) 250 | -11/Scrapyard | Entered Materials 319 | -10/Materials | Build established: Mutant 511 | -10/Materials | Discovered new exit (range 11) 790 | -10/Materials | Discovered new exit (range 14) 1151 | -10/Materials | Discovered new exit (range 16) 1295 | -10/Materials | Learned location of Mines (-9) 1363 | -10/Materials | Identified exit to Subcaves 1423 | -10/Materials | Learned Storage stockpile data 1445 | -10/Materials | Entered Subcaves 1601 | -10/Subcaves | Discovered new exit (range 7) 1648 | -10/Subcaves | Visited 4L-MR0's lab 1676 | -10/Subcaves | Found Tower Shield 1743 | -10/Subcaves | Shifting Twisted Machinery released Sub. Monowheel 2063 | -10/Subcaves | Disturbed a concealed Subdweller 2170 | -10/Subcaves | Core integrity fell below 50% 3089 | -10/Subcaves | Visited Clippyterm 3094 | -10/Subcaves | Learned Factory emergency access door positions 3125 | -10/Subcaves | Attached Tower Shield, gained temporary slots: Power, Propulsion x2, Utility x2, Weapon x2 5172 | -10/Subcaves | Shifting Twisted Machinery released Barrage Gun 5644 | -10/Subcaves | Core integrity fell below 20% 6805 | -10/Subcaves | Discovered new exit (range 15) 6850 | -10/Subcaves | Visited triangular shrine 6869 | -10/Subcaves | Found Prototype Device 6869 | -10/Subcaves | Identified V3-11A's Pendant 6874 | -10/Subcaves | Befriended Subdweller 7021 | -10/Subcaves | Shifting Twisted Machinery released Mak. Spear 7182 | -10/Subcaves | Shifting Twisted Machinery released Mak. Power Source 7269 | -10/Subcaves | Shifting Twisted Machinery released Mak. Light Armor Plating 7269 | -10/Subcaves | Shifting Twisted Machinery released Battle Rifle 7269 | -10/Subcaves | Learned location of Zion (-7) 7269 | -10/Subcaves | Met a Zionite searching for "candidates" 8222 | -10/Subcaves | Approached by friendly Subdweller 8731 | -10/Subcaves | Discovered new exit (range 12) 9015 | -10/Subcaves | Befriended Subdweller 9015 | -10/Subcaves | Befriended Subdweller 10679 | -10/Subcaves | Approached by friendly Subdweller 11022 | -10/Subcaves | Approached by friendly Subdweller 13914 | -10/Subcaves | Ambushed by Subdweller buried in earth 13918 | -10/Subcaves | Befriended Subdweller 13922 | -10/Subcaves | Ambushed by Subdweller buried in earth 13923 | -10/Subcaves | Befriended Subdweller 13927 | -10/Subcaves | Ambushed by Subdweller buried in earth 13928 | -10/Subcaves | Befriended Subdweller 13955 | -10/Subcaves | Ambushed by Subdweller buried in earth 14835 | -10/Subcaves | Lost 3 allies 22410 | -10/Subcaves | Ambushed by Subdweller buried in earth 22413 | -10/Subcaves | Befriended Subdweller 22732 | -10/Subcaves | Entered Recycling 22732 | -8/Recycling | Accompanied by 1 ally 22925 | -8/Recycling | Build established: Derelict-Mutant 23640 | -8/Recycling | Destroyed by H-55 Commando with Gauss Rifle Last Messages --------------- 22933_ Dropped Wheel. 22933_ Acquired Field Recycling Unit. 22949_ Dropped Lgt. Treads. 22950_ Acquired Imp. Grenade Launcher. 22950_ R-06 Scavenger collects Wheel. 22955_ R-06 Scavenger collects Lgt. Treads. 22981_ Dropped Barrage Gun. 22982_ Acquired Datajack. 22987_ R-06 Scavenger collects Barrage Gun. 23054_ R-06 Scavenger inserts Wheel into recycling unit. 23057_ R-06 Scavenger inserts Barrage Gun into recycling unit. 23587_ G-47 Trooper destroyed. 23622_ P-60 Hacker destroyed. 23624_ Acquired 44 matter. 23628_ R-06 Scavenger collects Gravmag System. 23630_ Slug penetrates Wall. 23633_ R-06 Scavenger collects Gravmag System. 23634_ Slug penetrates Wall. 23634_ Mak. Power Source destroyed. 23637_ Penetrated by Slug. Map ----- +----------------------------------------------------+ | ?????????????????????????????????????????????????? | | ?????????????????????????????????????????????????? | | ?????????????????????????????????????????????????? | | ?????????????????????????????????????????????????? | | ?????????????????????????????????????????????????? | | ?????????????????????????????????????????????????? | | ?????????????????????????????????????????????????? | | ?????????????????????????????????????????????????? | | ?????????????????????????????????????????????????? | | ??????????????????????? ?????????????????????????? | | ?????????????????#????????"""##??????????????????? | | ????????????????????######"Y"#T???????#??????????? | | ??????????????? ???? ???##??#?#?#??????? | | ????????????????? ???? ? ??##?##???#????? | | ????????????? ???????? """???????? ????#??#?? | | ???????????? ????????? """?? #? ?? ??##?#??? | | ??????????????????????# """ #?? ?? ??#?#??## | | ????????????? ????? ??# """ #% ?????#?????# | | ????????? ???????????# """ /[% ? ?? ??#???# | | ??????????????######### # ??? ??????#??? | | ??????????????+ # ??? ??##???? | | ??????????????###### r +? ?? ??#??#? | | ?????????? ???????## r ###"T"##? ????? ???????? | | ?????????? ?? ?????# %r ##?"?"???#+##????#????#? | | ???????????????#??## rgh####??#?## ###?#??##?#?? | | ????????????????#??# @##?###?### ###?#?????#?? | | ?????????#??#????#?# #?##?##?# ####???#????# | | ??????????#?#??????#### #?#?#?### #?#?????#? | | ????????????#?????#?#] #?##?##"" ##??##???# | | ????????????????#??## #??####"Y ##?##????? | | ???????????##???????#r #?#??##"" #?????#### | | ?????????#???########## ######### #?#?##?#?? | | ??"Y"######### #### ## ## ###?#?##?? | | ?? #####?#?#? | | ?? ## ####????????# | | ?? ## ##??####????? | | ??????######## ########## ## #?####???##?# | | ?????????????## ##?##########+####+########???#? | | ??????????????# #?## ] #??###?? | | ????????????#?# #??# / !/ !#????##? | | ??????????????# #??# ##?#???? | | ??????????????# ##?# ! ! #??????? | | ??????????????# #??# ! ! * = [ #??????? | | ??????????????# ##?# [ ! !! #??????? | | ??????????????# %#?# ! #??????? | | ??????????????# ##?######################??????? | | ?????????????## ##???#!!!#?????????????????????? | | ?????????????# #####!!!###????????????#??????? | | ?????????????# #?#????????#??#?????? | | ?????????????# #????????????#??????? | +----------------------------------------------------+ Best States ------------- Heat Dissipation 25 Coolant Potential 50 Energy Generation 15 Energy Capacity 250 Matter Stores 300 Matter Capacity 300 Sight Range 16 Terrain Scan Range 16 Terrain Scan Density 10 Armor Coverage 2000 Evasion (%) 40 Recoil Reduction 4 Item Schematics ----------------- None Robot Schematics ------------------ None Fabricated ------------ Nothing Alien Tech Used ----------------- None Achievements -------------- None Challenges ------------ None Game ------ Seed EnhancedCentriumScreen Manual? 0 Play Time 01:01:36 Cumulative 348.1 hours Start 2024.10.14 @ 12:08:27 End 2024.10.14 @ 13:09:32 Sessions 1 Manual Loads 0 Difficulty Rogue Special Mode None Game No. 266 Rogue 266 Adventurer 0 Explorer 0 Win Type - Total 3 Types 1/0/1/1/0/0/0/0/0 Lore% 75 Gallery% 80 Achievement% 64 Wizard Run 0 Options --------- Layout 2 ASCII 0 Keyboard 1 Movement Vi Keybinds 0 Fullscreen 2 Font 32/SmallcapsGlow Map View 77x44 Zoom Use 0% Tactical HUD 1 Map Filters NONE Filters NONE Steam 1 RUN: 0d188bbf-5d94-48c4-9c73-e97fa76029e9